[Event "23rd OIBM 2019"]
[Site "Gmund am Tegernsee"]
[Date "2019.10.26"]
[Round "1.27"]
[White "Lohvinov, Petro"]
[Black "Parvanyan, Ashot"]
[Result "0-1"]
[ECO "C03"]
[WhiteElo "2117"]
[BlackElo "2448"]
[Annotator "RC"]
[PlyCount "124"]
[EventDate "2019.10.17"]
[EventType "swiss"]
[EventCountry "GER"]
[SourceTitle "playchess.com"]
[Source "ChessBase"]
[SourceQuality "1"]
[TimeControl "40/5400+30:1800+30"]

1. e4 {[%emt 0:00:00]} e6 {[%emt 0:00:47]} 2. d4 {[%emt 0:00:00]} d5 {[%emt 0:00:06]} 3. Nd2 {[%emt 0:00:00]} Be7 {[%emt 0:00:59]} 4. c3 {[%emt 0:00:24]} c5 {[%emt 0:01:00]} 5. Bd3 {[%emt 0:07:36]} cxd4 {[%emt 0:02:11]} 6. cxd4 {[%emt 0:01:36]} Nc6 {[%emt 0:00:18]} 7. Ngf3 {[%emt 0:00:09]} dxe4 {[%emt 0:01:18]} 8. Nxe4 {[%emt 0:00:07]} Nf6 {[%emt 0:00:30]} 9. O-O {[%emt 0:00:47]} O-O {[%emt 0:02:19]} 10. Nc3 {[%emt 0:02:27]} b6 {[%emt 0:03:22]} 11. a3 {[%emt 0:05:00]} Bb7 {[%emt 0:01:17]} 12. Bc2 {[%emt 0:00:45]} Qd6 {[%emt 0:09:47]} 13. Qd3 {[%emt 0:06:33]} Rfd8 {[%emt 0:04:20]} 14. Be3 {[%emt 0:02:40]} Rac8 {[%emt 0:02:55]} 15. Rad1 {[%emt 0:03:59]} g6 {[%emt 0:10:44]} 16. Bg5 {[%emt 0:11:01]} Nd5 {[%emt 0:08:43]} 17. Ne4 {[%emt 0:15:30]} Qc7 {[%emt 0:00:17]} 18. Bb1 {[%emt 0:06:18]} Bxg5 {[%emt 0:08:20]} 19. Nfxg5 {[%emt 0:01:55]} Nf4 {[%emt 0:06:08]} 20. Qe3 {[%emt 0:03:48]} Nxd4 {[%emt 0:01:59]} 21. Rfe1 {[%emt 0:15:26]} h6 {[%emt 0:14:55]} 22. Nh3 {[%emt 0:08:41]} Nxh3+ {[%emt 0:13:22]} 23. Qxh3 {[%emt 0:00:03]} Ne2+ {[%emt 0:05:06]} 24. Kh1 {[%emt 0:00:07]} Kg7 {[%emt 0:00:42]} 25. Qe3 {[%emt 0:02:26]} Nf4 {[%emt 0:00:27]} 26. f3 {[%emt 0:02:47]} Bxe4 {[%emt 0:00:35]} 27. Bxe4 {[%emt 0:00:55]} Qe5 {[%emt 0:00:17]} 28. Qb3 {[%emt 0:02:15]} Qg5 {[%emt 0:00:40]} 29. g3 {[%emt 0:00:36]} Nh3 {[%emt 0:00:34]} 30. Rxd8 {[%emt 0:00:33]} Rxd8 {[%emt 0:00:14]} 31. Qc3+ {[%emt 0:00:09]} Qf6 {[%emt 0:00:43]} 32. Kg2 {[%emt 0:00:52]} Qxc3 {[%emt 0:00:24]} 33. bxc3 {[%emt 0:00:02]} Ng5 {[%emt 0:00:07]} 34. f4 {[%emt 0:00:56]} Rd2+ {[%emt 0:00:39]} 35. Kg1 {[%emt 0:00:31]} Nh3+ {[%emt 0:00:20]} 36. Kh1 {[%emt 0:00:11]} Nf2+ {[%emt 0:00:12]} 37. Kg1 {[%emt 0:00:00]} Nd1 {[%emt 0:01:06]} 38. c4 {[%emt 0:00:52]} Nb2 {[%emt 0:00:13]} 39. Rc1 {[%emt 0:00:43]} Rd4 {[%emt 0:00:21]} 40. Bg2 {[%emt 0:00:44]} Nxc4 {[%emt 0:00:21]} 41. Rc3 {[%emt 0:01:32]} Rd1+ {[%emt 0:02:52]} 42. Kf2 {[%emt 0:00:26]} Rd2+ {[%emt 0:00:08]} 43. Kg1 {[%emt 0:00:21]} Nd6 {[%emt 0:00:29]} 44. Bc6 {[%emt 0:02:24]} Kf6 {[%emt 0:00:36]} 45. a4 {[%emt 0:01:55]} Ra2 {[%emt 0:00:48]} 46. h4 {[%emt 0:00:48]} h5 {[%emt 0:01:22]} 47. Kf1 {[%emt 0:01:47]} Kf5 {[%emt 0:06:32]} 48. Re3 {[%emt 0:04:08]} Nc4 {[%emt 0:01:15]} 49. Rd3 {[%emt 0:01:23]} Rd2 {[%emt 0:01:45]} 50. Rc3 {[%emt 0:00:19]} Nd6 {[%emt 0:00:47]} 51. Re3 {[%emt 0:00:25]} Rc2 {[%emt 0:00:40]} 52. Bf3 {[%emt 0:01:29]} Nc4 {[%emt 0:01:41]} 53. Re2 {[%emt 0:01:26]} Rxe2 {[%emt 0:02:49]} 54. Kxe2 {[%emt 0:00:02]} e5 {[%emt 0:01:18]} 55. fxe5 {[%emt 0:00:11]} Nxe5 {[%emt 0:00:17]} 56. Bd5 {[%emt 0:00:19]} f6 {[%emt 0:01:17]} 57. Bb7 {[%emt 0:01:10]} Nf7 {[%emt 0:06:59]} 58. Bc8+ {[%emt 0:01:03]} Ke4 {[%emt 0:00:50]} 59. Bd7 {[%emt 0:00:24]} Ne5 {[%emt 0:01:21]} 60. Be8 {[%emt 0:00:12]} a6 {[%emt 0:00:18]} 61. Kf2 {[%emt 0:00:40]} Kd5 {[%emt 0:00:15]} 62. Ke3 {[%emt 0:00:31]} Kd6 {[%emt 0:00:29]} 0-1

[Event "23rd OIBM 2019"]
[Site "Gmund am Tegernsee"]
[Date "2019.10.26"]
[Round "1.28"]
[White "Hoffmann, Michael"]
[Black "Kick, Joachim"]
[Result "1-0"]
[ECO "A29"]
[WhiteElo "2445"]
[BlackElo "2116"]
[Annotator "NA"]
[PlyCount "49"]
[EventDate "2019.10.17"]
[EventType "swiss"]
[EventCountry "GER"]
[SourceTitle "playchess.com"]
[Source "ChessBase"]
[SourceQuality "1"]
[TimeControl "40/5400+30:1800+30"]

1. c4 {[%emt 0:00:44]} e5 {[%emt 0:00:00]} 2. Nc3 {[%emt 0:00:32]} Nf6 {[%emt 0:00:01]} 3. Nf3 {[%emt 0:00:33]} Nc6 {[%emt 0:00:07]} 4. g3 {[%emt 0:01:03]} Bb4 {[%emt 0:00:30]} 5. Nd5 {[%emt 0:02:04]} Bc5 {[%emt 0:01:49]} 6. Bg2 {[%emt 0:00:34]} O-O {[%emt 0:00:58]} 7. d3 {[%emt 0:03:53]} Nxd5 {[%emt 0:06:56]} 8. cxd5 {[%emt 0:00:35]} Nd4 {[%emt 0:00:07]} 9. Nd2 {[%emt 0:03:38]} d6 {[%emt 0:06:34]} 10. e3 {[%emt 0:02:04]} Nf5 {[%emt 0:01:48]} 11. Ne4 {[%emt 0:02:52]} Bb6 {[%emt 0:01:53]} 12. O-O {[%emt 0:01:10]} a6 {[%emt 0:04:23]} 13. Bd2 {[%emt 0:00:39]} Ne7 {[%emt 0:01:38]} 14. Nc3 {[%emt 0:04:19]} f5 {[%emt 0:05:22]} 15. f4 {[%emt 0:06:14]} exf4 {[%emt 0:08:21]} 16. gxf4 {[%emt 0:02:31]} Ng6 {[%emt 0:03:08]} 17. Rf3 {[%emt 0:02:21]} Qe7 {[%emt 0:25:54]} 18. Kh1 {[%emt 0:02:27]} Nh4 {[%emt 0:15:37]} 19. Rg3 {[%emt 0:09:15]} Nxg2 {[%emt 0:01:54]} 20. Rxg2 {[%emt 0:04:27]} Bd7 {[%emt 0:02:17]} 21. Qf3 {[%emt 0:01:55]} Be8 {[%emt 0:09:02]} 22. Rag1 {[%emt 0:01:45]} g6 {[%emt 0:01:36]} 23. Rg5 {[%emt 0:09:40]} Bf7 {[%emt 0:00:49]} 24. Rxf5 {[%emt 0:00:58]} Rae8 {[%emt 0:00:18]} 25. Ne4 {[%emt 0:00:19]} 1-0

[Event "23rd OIBM 2019"]
[Site "Gmund am Tegernsee"]
[Date "2019.10.26"]
[Round "1.29"]
[White "Teuschler, Hugo"]
[Black "Womacka, Mathias"]
[Result "0-1"]
[ECO "B96"]
[WhiteElo "2116"]
[BlackElo "2436"]
[Annotator "NA"]
[PlyCount "68"]
[EventDate "2019.10.17"]
[EventType "swiss"]
[EventCountry "GER"]
[SourceTitle "playchess.com"]
[Source "ChessBase"]
[SourceQuality "1"]
[TimeControl "40/5400+30:1800+30"]

1. e4 {[%emt 0:00:00]} c5 {[%emt 0:00:00]} 2. Nf3 {[%emt 0:00:00]} d6 {[%emt 0:00:00]} 3. d4 {[%emt 0:00:00]} cxd4 {[%emt 0:00:00]} 4. Nxd4 {[%emt 0:00:00]} Nf6 {[%emt 0:00:00]} 5. Nc3 {[%emt 0:00:00]} a6 {[%emt 0:00:00]} 6. Bg5 {[%emt 0:00:36]} e6 {[%emt 0:00:10]} 7. f4 {[%emt 0:00:10]} h6 {[%emt 0:00:21]} 8. Bh4 {[%emt 0:00:05]} Qb6 {[%emt 0:00:11]} 9. a3 {[%emt 0:03:38]} Nbd7 {[%emt 0:00:25]} 10. Bc4 {[%emt 0:02:29]} e5 {[%emt 0:01:24]} 11. fxe5 {[%emt 0:00:19]} dxe5 {[%emt 0:00:06]} 12. Nf5 {[%emt 0:00:28]} g6 {[%emt 0:00:40]} 13. Nd5 {[%emt 0:00:13]} Nxd5 {[%emt 0:00:13]} 14. Qxd5 {[%emt 0:00:06]} Rh7 {[%emt 0:00:37]} 15. O-O-O {[%emt 0:01:02]} gxf5 {[%emt 0:03:09]} 16. exf5 {[%emt 0:00:08]} Be7 {[%emt 0:01:49]} 17. Bxe7 {[%emt 0:00:08]} Kxe7 {[%emt 0:00:05]} 18. Rhf1 {[%emt 0:01:59]} Kf8 {[%emt 0:01:28]} 19. f6 {[%emt 0:00:08]} Nxf6 {[%emt 0:01:17]} 20. Qxe5 {[%emt 0:15:44]} Ng4 {[%emt 0:02:30]} 21. Rxf7+ {[%emt 0:11:05]} Rxf7 {[%emt 0:00:52]} 22. Qh8+ {[%emt 0:00:07]} Ke7 {[%emt 0:00:09]} 23. Bxf7 {[%emt 0:04:55]} Kxf7 {[%emt 0:16:51]} 24. Qh7+ {[%emt 0:07:55]} Kf6 {[%emt 0:23:50]} 25. Rf1+ {[%emt 0:34:38]} Kg5 {[%emt 0:01:03]} 26. Qe7+ {[%emt 0:06:37]} Kh5 {[%emt 0:02:18]} 27. Qf7+ {[%emt 0:02:49]} Qg6 {[%emt 0:00:28]} 28. Qf3 {[%emt 0:00:11]} Be6 {[%emt 0:05:36]} 29. h3 {[%emt 0:00:31]} Rc8 {[%emt 0:01:36]} 30. hxg4+ {[%emt 0:00:59]} Qxg4 {[%emt 0:00:25]} 31. Rh1+ {[%emt 0:03:26]} Kg6 {[%emt 0:00:26]} 32. Qxb7 {[%emt 0:01:17]} Qe2 {[%emt 0:09:02]} 33. c3 {[%emt 0:00:58]} Rf8 {[%emt 0:00:17]} 34. Qb6 {[%emt 0:02:09]} Rf2 {[%emt 0:01:15]} 0-1

[Event "23rd OIBM 2019"]
[Site "Gmund am Tegernsee"]
[Date "2019.10.26"]
[Round "1.30"]
[White "Bellia, Fabrizio"]
[Black "Schatz, Dieter"]
[Result "1-0"]
[ECO "C18"]
[WhiteElo "2433"]
[BlackElo "2113"]
[Annotator "NA"]
[PlyCount "71"]
[EventDate "2019.10.17"]
[EventType "swiss"]
[EventCountry "GER"]
[SourceTitle "playchess.com"]
[Source "ChessBase"]
[SourceQuality "1"]
[TimeControl "40/5400+30:1800+30"]

1. e4 {[%emt 0:00:00]} e6 {[%emt 0:00:00]} 2. d4 {[%emt 0:00:00]} d5 {[%emt 0:00:00]} 3. Nc3 {[%emt 0:00:00]} Bb4 {[%emt 0:00:00]} 4. e5 {[%emt 0:00:02]} c5 {[%emt 0:00:03]} 5. a3 {[%emt 0:00:05]} Bxc3+ {[%emt 0:00:06]} 6. bxc3 {[%emt 0:00:04]} Ne7 {[%emt 0:00:06]} 7. h4 {[%emt 0:01:56]} Qa5 {[%emt 0:02:59]} 8. Bd2 {[%emt 0:00:26]} Qa4 {[%emt 0:02:53]} 9. Nf3 {[%emt 0:04:58]} c4 {[%emt 0:02:16]} 10. h5 {[%emt 0:00:53]} h6 {[%emt 0:01:49]} 11. Nh4 {[%emt 0:06:22]} Nbc6 {[%emt 0:04:08]} 12. g3 {[%emt 0:03:52]} Bd7 {[%emt 0:01:17]} 13. Bh3 {[%emt 0:00:31]} O-O-O {[%emt 0:00:24]} 14. O-O {[%emt 0:00:27]} Rdg8 {[%emt 0:07:07]} 15. Ng2 {[%emt 0:01:54]} g5 {[%emt 0:20:01]} 16. Ne3 {[%emt 0:00:44]} Nb8 {[%emt 0:04:21]} 17. Ng4 {[%emt 0:05:22]} Bc6 {[%emt 0:02:40]} 18. Nf6 {[%emt 0:00:46]} Rf8 {[%emt 0:01:20]} 19. f4 {[%emt 0:00:43]} gxf4 {[%emt 0:00:53]} 20. Bxf4 {[%emt 0:01:05]} Nd7 {[%emt 0:02:43]} 21. Qd2 {[%emt 0:00:48]} Ng8 {[%emt 0:05:56]} 22. Ng4 {[%emt 0:07:44]} f5 {[%emt 0:05:21]} 23. exf6 {[%emt 0:01:52]} Ngxf6 {[%emt 0:04:55]} 24. Nxf6 {[%emt 0:00:23]} Rxf6 {[%emt 0:00:10]} 25. Bd6 {[%emt 0:00:27]} b6 {[%emt 0:08:18]} 26. Be7 {[%emt 0:07:40]} Rxf1+ {[%emt 0:03:42]} 27. Rxf1 {[%emt 0:00:08]} Re8 {[%emt 0:02:04]} 28. Rf7 {[%emt 0:00:38]} Kb7 {[%emt 0:00:26]} 29. Bxe6 {[%emt 0:00:55]} Ka6 {[%emt 0:00:14]} 30. Bf5 {[%emt 0:01:24]} Qb5 {[%emt 0:04:24]} 31. Bb4 {[%emt 0:06:43]} Nc5 {[%emt 0:02:52]} 32. dxc5 {[%emt 0:00:07]} bxc5 {[%emt 0:00:05]} 33. Qf2 {[%emt 0:00:27]} d4 {[%emt 0:01:33]} 34. cxd4 {[%emt 0:07:19]} cxb4 {[%emt 0:00:18]} 35. d5 {[%emt 0:00:08]} Bb7 {[%emt 0:00:08]} 36. Rf6+ {[%emt 0:00:18]} 1-0

[Event "23rd OIBM 2019"]
[Site "Gmund am Tegernsee"]
[Date "2019.10.26"]
[Round "1.31"]
[White "Yugina, Maria"]
[Black "Smith, Bryan"]
[Result "0-1"]
[ECO "A02"]
[WhiteElo "2112"]
[BlackElo "2430"]
[Annotator "NA RC"]
[PlyCount "90"]
[EventDate "2019.10.17"]
[EventType "swiss"]
[EventCountry "GER"]
[SourceTitle "playchess.com"]
[Source "ChessBase"]
[SourceQuality "1"]
[TimeControl "40/5400+30:1800+30"]

1. f4 {[%emt 0:00:00]} c5 {[%emt 0:03:46]} 2. Nf3 {[%emt 0:00:00]} g6 {[%emt 0:00:19]} 3. g3 Bg7 {[%emt 0:00:07]} 4. Bg2 {[%emt 0:00:33]} d5 {[%emt 0:00:50]} 5. O-O {[%emt 0:00:41]} Nh6 {[%emt 0:00:27]} 6. d3 {[%emt 0:00:53]} d4 {[%emt 0:00:38]} 7. Qe1 {[%emt 0:03:53]} Nc6 {[%emt 0:02:13]} 8. e4 {[%emt 0:09:57]} dxe3 {[%emt 0:01:10]} 9. Qxe3 {[%emt 0:03:25]} Nd4 {[%emt 0:05:35]} 10. Na3 {[%emt 0:13:35]} Nhf5 {[%emt 0:08:30]} 11. Qe1 {[%emt 0:01:52]} Nxf3+ {[%emt 0:04:20]} 12. Rxf3 {[%emt 0:01:32]} h5 {[%emt 0:02:22]} 13. Nc4 {[%emt 0:16:32]} h4 {[%emt 0:07:33]} 14. Ne5 {[%emt 0:04:30]} hxg3 {[%emt 0:04:40]} 15. hxg3 {[%emt 0:04:23]} Be6 {[%emt 0:03:55]} 16. Nxg6 {[%emt 0:11:22]} Bd4+ {[%emt 0:04:11]} 17. Kf1 {[%emt 0:00:37]} Rg8 {[%emt 0:02:00]} 18. Nh4 {[%emt 0:04:34]} Nxh4 {[%emt 0:00:41]} 19. gxh4 {[%emt 0:00:12]} Qd7 {[%emt 0:01:47]} 20. Rg3 {[%emt 0:06:15]} O-O-O {[%emt 0:00:59]} 21. Be3 {[%emt 0:04:08]} Bd5 {[%emt 0:05:36]} 22. Bxd4 {[%emt 0:02:38]} cxd4 {[%emt 0:02:23]} 23. Bh3 {[%emt 0:02:10]} e6 {[%emt 0:01:30]} 24. Qf2 {[%emt 0:00:55]} Qe7 {[%emt 0:03:12]} 25. Rg5 {[%emt 0:00:35]} Kb8 {[%emt 0:01:07]} 26. Re1 {[%emt 0:01:26]} Qb4 {[%emt 0:06:11]} 27. b3 {[%emt 0:00:41]} Qd6 {[%emt 0:00:36]} 28. Qg3 {[%emt 0:01:22]} Rxg5 {[%emt 0:01:58]} 29. Qxg5 {[%emt 0:00:07]} Ka8 {[%emt 0:03:03]} 30. h5 {[%emt 0:00:35]} f6 {[%emt 0:00:48]} 31. Qh4 {[%emt 0:02:06]} a6 {[%emt 0:00:17]} 32. Re2 {[%emt 0:00:13]} e5 {[%emt 0:03:01]} 33. f5 {[%emt 0:02:37]} Qc6 {[%emt 0:02:22]} 34. Bg2 {[%emt 0:00:24]} Bxg2+ {[%emt 0:00:16]} 35. Rxg2 {[%emt 0:00:03]} Qf3+ {[%emt 0:00:28]} 36. Kg1 {[%emt 0:01:17]} Rh8 {[%emt 0:02:33]} 37. Qxf6 {[%emt 0:00:49]} Qd1+ {[%emt 0:02:20]} 38. Kf2 {[%emt 0:00:27]} Qxc2+ {[%emt 0:00:27]} 39. Kg1 {[%emt 0:00:32]} Qc1+ {[%emt 0:00:29]} 40. Kf2 {[%emt 0:01:18]} Qe3+ {[%emt 0:00:42]} 41. Kf1 {[%emt 0:30:03]} Qxd3+ {[%emt 0:30:45]} 42. Re2 {[%emt 0:00:00]} Qf3+ {[%emt 0:00:00]} 43. Ke1 {[%emt 0:00:00]} Rg8 {[%emt 0:00:00]} 44. Rxe5 {[%emt 0:00:00]} Rg1+ {[%emt 0:00:00]} 45. Kd2 {[%emt 0:00:00]} Qd1# {[%emt 0:00:00]} 0-1

[Event "23rd OIBM 2019"]
[Site "Gmund am Tegernsee"]
[Date "2019.10.26"]
[Round "1.32"]
[White "Braeuer, Franz"]
[Black "Freundorfer, Josef"]
[Result "1/2-1/2"]
[ECO "C45"]
[WhiteElo "2429"]
[BlackElo "2111"]
[Annotator "NA RC"]
[PlyCount "101"]
[EventDate "2019.10.17"]
[EventType "swiss"]
[EventCountry "GER"]
[SourceTitle "playchess.com"]
[Source "ChessBase"]
[SourceQuality "1"]
[TimeControl "40/5400+30:1800+30"]

1. e4 {[%emt 0:02:36]} e5 {[%emt 0:00:00]} 2. Nf3 {[%emt 0:00:06]} Nc6 {[%emt 0:00:00]} 3. d4 {[%emt 0:00:30]} exd4 {[%emt 0:00:09]} 4. Nxd4 {[%emt 0:00:04]} Bc5 {[%emt 0:00:17]} 5. Nb3 {[%emt 0:00:18]} Bb6 {[%emt 0:00:49]} 6. Nc3 {[%emt 0:00:06]} Qf6 {[%emt 0:01:56]} 7. Qe2 {[%emt 0:00:52]} Nge7 {[%emt 0:06:14]} 8. h4 {[%emt 0:04:08]} h6 {[%emt 0:02:07]} 9. g4 {[%emt 0:02:49]} Nd4 {[%emt 0:11:13]} 10. Nxd4 {[%emt 0:00:11]} Bxd4 {[%emt 0:00:18]} 11. Bd2 {[%emt 0:06:29]} Qb6 {[%emt 0:03:13]} 12. O-O-O {[%emt 0:10:06]} d6 {[%emt 0:03:51]} 13. f4 {[%emt 0:05:40]} Bd7 {[%emt 0:03:55]} 14. Qf3 {[%emt 0:06:07]} O-O-O {[%emt 0:05:37]} 15. Bc4 {[%emt 0:00:08]} Rhf8 {[%emt 0:02:38]} 16. Bb3 {[%emt 0:07:34]} Bc6 {[%emt 0:02:21]} 17. Rhe1 {[%emt 0:12:46]} Kb8 {[%emt 0:06:38]} 18. Be3 {[%emt 0:03:01]} Bxe3+ {[%emt 0:00:37]} 19. Rxe3 {[%emt 0:00:02]} Rde8 {[%emt 0:07:42]} 20. Qg3 {[%emt 0:01:02]} Qc5 {[%emt 0:02:35]} 21. Red3 {[%emt 0:06:03]} a6 {[%emt 0:01:41]} 22. g5 {[%emt 0:04:28]} hxg5 {[%emt 0:01:50]} 23. hxg5 {[%emt 0:00:01]} Ng6 {[%emt 0:06:12]} 24. Bd5 {[%emt 0:00:39]} Re7 {[%emt 0:01:13]} 25. Rd4 {[%emt 0:03:52]} Bxd5 {[%emt 0:04:13]} 26. Nxd5 {[%emt 0:00:49]} Ree8 {[%emt 0:01:31]} 27. a3 {[%emt 0:01:15]} Ne7 {[%emt 0:01:18]} 28. Nc3 {[%emt 0:01:12]} Nc6 {[%emt 0:01:04]} 29. Rd5 {[%emt 0:00:21]} Qb6 {[%emt 0:01:26]} 30. Kb1 {[%emt 0:01:26]} Ne7 {[%emt 0:01:14]} 31. R5d2 {[%emt 0:01:17]} Rh8 {[%emt 0:01:19]} 32. Re2 {[%emt 0:04:17]} Qc5 {[%emt 0:02:59]} 33. Qg4 {[%emt 0:01:55]} Qc6 {[%emt 0:05:43]} 34. Ree1 {[%emt 0:06:38]} Ng6 {[%emt 0:02:53]} 35. Rh1 {[%emt 0:01:17]} Ne7 {[%emt 0:01:02]} 36. Qg2 {[%emt 0:02:34]} Ng6 {[%emt 0:01:51]} 37. Qf2 {[%emt 0:00:12]} Qd7 {[%emt 0:00:58]} 38. Rxh8 {[%emt 0:01:13]} Rxh8 {[%emt 0:00:19]} 39. e5 {[%emt 0:01:41]} Rh4 {[%emt 0:01:03]} 40. Ne2 {[%emt 0:03:36]} Qf5 {[%emt 0:05:42]} 41. exd6 {[%emt 0:01:23]} cxd6 {[%emt 0:00:34]} 42. Qb6 {[%emt 0:05:32]} Qc5 {[%emt 0:02:30]} 43. Qxc5 {[%emt 0:16:30]} dxc5 {[%emt 0:00:48]} 44. f5 {[%emt 0:00:02]} Ne5 {[%emt 0:06:59]} 45. Rd5 {[%emt 0:00:02]} Re4 {[%emt 0:00:32]} 46. Nc3 {[%emt 0:02:12]} Re1+ {[%emt 0:00:13]} 47. Ka2 {[%emt 0:00:02]} b6 {[%emt 0:00:17]} 48. Rd8+ {[%emt 0:00:46]} Kb7 {[%emt 0:02:58]} 49. Rg8 {[%emt 0:00:50]} Rf1 {[%emt 0:04:42]} 50. Rxg7 {[%emt 0:01:31]} Rxf5 {[%emt 0:00:23]} 51. b3 {[%emt 0:01:25]} 1/2-1/2

[Event "23rd OIBM 2019"]
[Site "Gmund am Tegernsee"]
[Date "2019.10.26"]
[Round "1.34"]
[White "Morawietz, Dieter"]
[Black "Thiel, Fabian"]
[Result "1/2-1/2"]
[ECO "D80"]
[WhiteElo "2419"]
[BlackElo "2109"]
[Annotator "NA"]
[PlyCount "68"]
[EventDate "2019.10.17"]
[EventType "swiss"]
[EventCountry "GER"]
[SourceTitle "playchess.com"]
[Source "ChessBase"]
[SourceQuality "1"]
[TimeControl "40/5400+30:1800+30"]

1. d4 {[%emt 0:00:00]} Nf6 {[%emt 0:00:00]} 2. c4 {[%emt 0:00:00]} g6 {[%emt 0:00:00]} 3. Nc3 {[%emt 0:00:00]} d5 {[%emt 0:00:00]} 4. Bg5 {[%emt 0:00:11]} Ne4 {[%emt 0:00:00]} 5. Bh4 {[%emt 0:00:09]} Nxc3 {[%emt 0:00:07]} 6. bxc3 {[%emt 0:00:06]} dxc4 {[%emt 0:00:29]} 7. e3 {[%emt 0:00:31]} Be6 {[%emt 0:00:34]} 8. Be2 {[%emt 0:06:58]} Bg7 {[%emt 0:01:02]} 9. Nh3 {[%emt 0:00:21]} c6 {[%emt 0:13:36]} 10. Nf4 {[%emt 0:13:08]} Bd5 {[%emt 0:00:40]} 11. Qb1 {[%emt 0:00:35]} Qc7 {[%emt 0:07:34]} 12. O-O {[%emt 0:08:04]} O-O {[%emt 0:03:59]} 13. Bg3 {[%emt 0:03:11]} e5 {[%emt 0:09:39]} 14. dxe5 {[%emt 0:01:10]} Nd7 {[%emt 0:08:26]} 15. e4 {[%emt 0:06:27]} Be6 {[%emt 0:10:17]} 16. Nxe6 {[%emt 0:00:08]} fxe6 {[%emt 0:00:05]} 17. Bxc4 {[%emt 0:00:09]} Rae8 {[%emt 0:00:08]} 18. f4 {[%emt 0:01:50]} b5 {[%emt 0:00:02]} 19. Be2 {[%emt 0:04:42]} g5 {[%emt 0:00:06]} 20. Bh5 {[%emt 0:07:49]} Rd8 {[%emt 0:01:05]} 21. Bg4 {[%emt 0:05:14]} gxf4 {[%emt 0:10:12]} 22. Bxe6+ {[%emt 0:02:06]} Kh8 {[%emt 0:00:05]} 23. Rxf4 {[%emt 0:04:31]} Bxe5 {[%emt 0:04:26]} 24. Rg4 {[%emt 0:10:34]} Nf6 {[%emt 0:01:04]} 25. Rg5 {[%emt 0:03:14]} Qb6+ {[%emt 0:01:55]} 26. Bf2 {[%emt 0:05:27]} Bxh2+ {[%emt 0:00:22]} 27. Kxh2 {[%emt 0:00:48]} Qxf2 {[%emt 0:00:02]} 28. Qe1 {[%emt 0:06:07]} Qf4+ {[%emt 0:01:22]} 29. Qg3 {[%emt 0:00:10]} Qxg3+ {[%emt 0:00:54]} 30. Rxg3 {[%emt 0:00:06]} Nxe4 {[%emt 0:00:44]} 31. Re3 {[%emt 0:02:10]} Ng5 {[%emt 0:04:36]} 32. Bb3 {[%emt 0:04:26]} Rd2 {[%emt 0:00:57]} 33. Rd1 {[%emt 0:00:44]} Rxd1 {[%emt 0:01:35]} 34. Bxd1 {[%emt 0:00:06]} Kg7 {[%emt 0:02:06]} 1/2-1/2

[Event "23rd OIBM 2019"]
[Site "Gmund am Tegernsee"]
[Date "2019.10.26"]
[Round "1.35"]
[White "Schnicke, Robert"]
[Black "Meins, Gerlef"]
[Result "0-1"]
[ECO "B62"]
[WhiteElo "2108"]
[BlackElo "2415"]
[Annotator "NA"]
[PlyCount "72"]
[EventDate "2019.10.17"]
[EventType "swiss"]
[EventCountry "GER"]
[SourceTitle "playchess.com"]
[Source "ChessBase"]
[SourceQuality "1"]
[TimeControl "40/5400+30:1800+30"]

1. e4 {[%emt 0:00:00]} c5 {[%emt 0:01:08]} 2. Nf3 {[%emt 0:00:16]} Nc6 {[%emt 0:00:13]} 3. d4 {[%emt 0:00:23]} cxd4 {[%emt 0:00:07]} 4. Nxd4 {[%emt 0:00:20]} Nf6 {[%emt 0:00:10]} 5. Nc3 {[%emt 0:00:19]} d6 {[%emt 0:00:39]} 6. Bg5 {[%emt 0:02:12]} e6 {[%emt 0:00:24]} 7. h3 {[%emt 0:08:16]} Be7 {[%emt 0:06:43]} 8. Qd2 {[%emt 0:05:23]} Nxe4 {[%emt 0:23:36]} 9. Nxe4 {[%emt 0:05:21]} Bxg5 {[%emt 0:00:34]} 10. Nxg5 {[%emt 0:07:51]} Nxd4 {[%emt 0:00:40]} 11. Ne4 {[%emt 0:03:25]} Nf5 {[%emt 0:06:24]} 12. g4 {[%emt 0:08:16]} d5 {[%emt 0:01:31]} 13. gxf5 {[%emt 0:01:36]} dxe4 {[%emt 0:00:49]} 14. Qb4 {[%emt 0:10:08]} Qe7 {[%emt 0:11:51]} 15. Bb5+ {[%emt 0:01:08]} Kf8 {[%emt 0:00:33]} 16. Qd4 {[%emt 0:07:57]} exf5 {[%emt 0:05:40]} 17. Rg1 {[%emt 0:02:31]} Rg8 {[%emt 0:01:05]} 18. O-O-O {[%emt 0:01:52]} Be6 {[%emt 0:00:17]} 19. Kb1 {[%emt 0:02:23]} g6 {[%emt 0:01:38]} 20. Rg3 {[%emt 0:01:43]} a6 {[%emt 0:02:48]} 21. Be2 {[%emt 0:01:08]} Rc8 {[%emt 0:01:55]} 22. Rc3 {[%emt 0:01:06]} Rxc3 {[%emt 0:01:41]} 23. Qxc3 {[%emt 0:00:05]} f6 {[%emt 0:01:51]} 24. Bc4 {[%emt 0:01:31]} Bxc4 {[%emt 0:00:51]} 25. Qxc4 {[%emt 0:00:26]} Kg7 {[%emt 0:00:45]} 26. Qb3 {[%emt 0:02:40]} Rc8 {[%emt 0:02:07]} 27. h4 {[%emt 0:01:41]} Rc7 {[%emt 0:01:21]} 28. Qd5 {[%emt 0:02:25]} Qc5 {[%emt 0:10:35]} 29. Qxc5 {[%emt 0:02:55]} Rxc5 {[%emt 0:00:08]} 30. Rd7+ {[%emt 0:00:09]} Kh6 {[%emt 0:00:07]} 31. Rxb7 {[%emt 0:00:06]} f4 {[%emt 0:00:39]} 32. Re7 {[%emt 0:02:38]} e3 {[%emt 0:04:46]} 33. f3 {[%emt 0:00:35]} Re5 {[%emt 0:04:22]} 34. Rxe5 {[%emt 0:00:08]} fxe5 {[%emt 0:00:05]} 35. Kc1 {[%emt 0:00:10]} g5 {[%emt 0:00:13]} 36. hxg5+ {[%emt 0:00:20]} Kxg5 {[%emt 0:00:08]} 0-1